Workbook

Sheet T (hidden)
A1: Tipo de vehículo | C1: Pregunta | F1: Adquisicion | H1: Editar
A2: Autocar de 15 metros | B2: T17 | C2: Si | D2: S | F2: Compra
A3: Autocar de 12 metros | B3: T18 | C3: No | D3: N | F3: Alquiler, leasing…
A4: Autocar de 9 metros | B4: T19
A5: Microbús | B5: T20
A6: Autocar genérico (autocares no englobados en las categorías anteriores) | B6: T21

Sheet DE (hidden)
C1: T17A | D1: T17 | E1: T18A | F1: T18 | G1: T19A | H1: T19 | I1: T20A | J1: T20 | K1: T21A | L1: T21
B2: Descripción: | D2: Autocar de 15 metros | F2: Autocar de 12 metros | H2: Autocar de 9 metros | J2: Microbús | L2: Autocar genérico (autocares no englobados en las categorías anteriores) | AJ2: 03/07/2025
B3: Tipo interes | D3: 0.0453 | F3: 0.0453 | H3: 0.0453 | J3: 0.0453 | L3: 0.0453
B4: Número de plazas incluido el conductor | D4: 65 | F4: 55 | H4: 35 | J4: 25 | L4: 55
B5: Potencia (CV) | D5: 420 | F5: 380 | H5: 280 | J5: 160 | L5: 380
B6: Masa Máxima Autorizada (kg) | D6: 0 | F6: 0 | H6: 0 | J6: 0 | L6: 0
B7: Número de ejes | D7: 3 | F7: 2 | H7: 2 | J7: 2 | L7: 2
B8: Kilómetros recorridos anualmente | D8: 75000 | F8: 65000 | H8: 50000 | J8: 40000 | L8: 65000
B9: Kilómetros facturados de los recorridos al año (km) | C9: 95 | D9: =ROUND(D8*C9/100,2) -> 71250 | E9: 95 | F9: =F8*E9/100 -> 61750 | G9: 95 | H9: =H8*G9/100 -> 47500 | I9: 95 | J9: =J8*I9/100 -> 38000 | K9: 95 | L9: =L8*K9/100 -> 61750
B10: Consumo medio (litros/100km) | D10: 30 | F10: 26 | H10: 21 | J10: 15.5 | L10: 26
B11: Horas trabajadas al año | D11: 1800 | F11: 1800 | H11: 1800 | J11: 1800 | L11: 1800
B12: Horas facturadas de las trabajadas al año (h,%) | C12: 91 | D12: =ROUND(D11*C12/100,0) -> 1638 | E12: 91 | F12: =F11*E12/100 -> 1638 | G12: 91 | H12: =H11*G12/100 -> 1638 | I12: 91 | J12: =J11*I12/100 -> 1638 | K12: 91 | L12: =L11*K12/100 -> 1638
B13: Kilómetros con viajeros de los recorridos al año (km,%) | C13: 90 | D13: =ROUND(D8*C13/100,2) -> 67500 | E13: 90 | F13: =F8*E13/100 -> 58500 | G13: 90 | H13: =H8*G13/100 -> 45000 | I13: 90 | J13: =J8*I13/100 -> 36000 | K13: 90 | L13: =L8*K13/100 -> 58500
B14: Ocupación media de las plazas en los kilómetros recorridos con viajeros (viajeros/autocar,%) | C14: 80 | D14: =ROUND((D4-1)*C14/100,0) -> 51 | E14: 80 | F14: =ROUND((F4-1)*E14/100,0) -> 43 | G14: 80 | H14: =ROUND((H4-1)*G14/100,0) -> 27 | I14: 80 | J14: =ROUND((J4-1)*I14/100,0) -> 19 | K14: 80 | L14: =ROUND((L4-1)*K14/100,0) -> 43
B15: Producción anual: Viajeros x Kilómetros | D15: =D13*D14 -> 3442500 | F15: =F13*F14 -> 2515500 | H15: =H13*H14 -> 1215000 | J15: =J13*J14 -> 684000 | L15: =L13*L14 -> 2515500
B16: Pago de alquiler o leasing anual (€) | D16: 0 | F16: 0 | H16: 0 | J16: 0 | L16: 0 | M16: CHASIS
B17: Precio de adquisición (precio de tarifa - descuento) sin IVA (€) | D17: 131408.55 | F17: 116029.69 | H17: 78861.75 | J17: 40274 | L17: 116029.69
B18: Vida útil (años) | D18: 12 | F18: 12 | H18: 12 | J18: 12 | L18: 12
B19: Valor residual sin IVA (€) | C19: 20 | D19: =ROUND(D17*C19/100,0) -> 26282 | E19: 20 | F19: =ROUND(F17*E19/100,0) -> 23206 | G19: 20 | H19: =ROUND(H17*G19/100,0) -> 15772 | I19: 20 | J19: =ROUND(J17*I19/100,0) -> 8055 | K19: 20 | L19: =ROUND(L17*K19/100,0) -> 23206
B20: AMORTIZACION DEL CHASIS | D20: =IFERROR(ROUND((D17-D19-D80)/D18,0),0) -> 8246 | F20: =IFERROR(ROUND((F17-F19-F80)/F18,0),0) -> 7451 | H20: =IFERROR(ROUND((H17-H19-H80)/H18,0),0) -> 5069 | J20: =IFERROR(ROUND((J17-J19-J80)/J18,0),0) -> 2562 | L20: =IFERROR(ROUND((L17-L19-L80)/L18,0),0) -> 7451
B21: GASTOS FINANCIEROS DEL CHASIS | D21: =IFERROR(ROUND(IF(D17=0,0,(D17-D19-D80)*(D$3/(1-POWER(1+D$3,-D18))-1/D18)),0),0) -> 2624.28 | F21: =IFERROR(ROUND(IF(F17=0,0,(F17-F19-F80)*(F$3/(1-POWER(1+F$3,-F18))-1/F18)),0),0) -> 2371.33 | H21: =IFERROR(ROUND(IF(H17=0,0,(H17-H19-H80)*(H$3/(1-POWER(1+H$3,-H18))-1/H18)),0),0) -> 1613.19 | J21: =IFERROR(ROUND(IF(J17=0,0,(J17-J19-J80)*(J$3/(1-POWER(1+J$3,-J18))-1/J18)),0),0) -> 815.24 | L21: =IFERROR(ROUND(IF(L17=0,0,(L17-L19-L80)*(L$3/(1-POWER(1+L$3,-L18))-1/L18)),0),0) -> 2371.33
B22: Pago de alquiler o leasing anual (€) | D22: 0 | F22: 0 | H22: 0 | J22: 0 | L22: 0 | M22: CARROZADO
B23: Precio de adquisición (precio de tarifa - descuento) sin IVA (€) | D23: 131408.55 | F23: 116029.69 | H23: 78861.75 | J23: 40274 | L23: 116029.69
B24: Vida útil (años) | D24: 12 | F24: 12 | H24: 12 | J24: 12 | L24: 12
B25: Valor residual sin IVA (€) | C25: 20 | D25: =ROUND(D23*C25/100,0) -> 26282 | E25: 20 | F25: =ROUND(F23*E25/100,0) -> 23206 | G25: 20 | H25: =ROUND(H23*G25/100,0) -> 15772 | I25: 20 | J25: =ROUND(J23*I25/100,0) -> 8055 | K25: 20 | L25: =ROUND(L23*K25/100,0) -> 23206
B26: AMORTIZACION CARROZADO | D26: =IFERROR(ROUND((D23-D25)/D24,0),0) -> 8761 | F26: =IFERROR(ROUND((F23-F25)/F24,0),0) -> 7735 | H26: =IFERROR(ROUND((H23-H25)/H24,0),0) -> 5257 | J26: =IFERROR(ROUND((J23-J25)/J24,0),0) -> 2685 | L26: =IFERROR(ROUND((L23-L25)/L24,0),0) -> 7735
B27: GASTOS FINANCIEROS CARROZADO | D27: =IFERROR(ROUND(IF(D17=0,0,(D23-D25)*(D$3/(1-POWER(1+D$3,-D24))-1/D24)),0),0) -> 2788.08 | F27: =IFERROR(ROUND(IF(F17=0,0,(F23-F25)*(F$3/(1-POWER(1+F$3,-F24))-1/F24)),0),0) -> 2461.79 | H27: =IFERROR(ROUND(IF(H17=0,0,(H23-H25)*(H$3/(1-POWER(1+H$3,-H24))-1/H24)),0),0) -> 1673.21 | J27: =IFERROR(ROUND(IF(J17=0,0,(J23-J25)*(J$3/(1-POWER(1+J$3,-J24))-1/J24)),0),0) -> 854.48 | L27: =IFERROR(ROUND(IF(L17=0,0,(L23-L25)*(L$3/(1-POWER(1+L$3,-L24))-1/L24)),0),0) -> 2461.79
B28: Pago de alquiler o leasing anual (€) | D28: 0 | F28: 0 | H28: 0 | J28: 0 | L28: 0 | M28: EQUIPOS
B29: Precio de adquisición (precio de tarifa - descuento) sin IVA (€) | D29: 0 | F29: 0 | H29: 0 | J29: 0 | L29: 0
B30: Vida útil (años) | D30: 0 | F30: 0 | H30: 0 | J30: 0 | L30: 0
B31: Valor residual sin IVA (€) | C31: 0 | D31: =ROUND(D29*C31/100,0) -> 0 | E31: 0 | F31: =ROUND(F29*E31/100,0) -> 0 | G31: 0 | H31: =ROUND(H29*G31/100,0) -> 0 | I31: 0 | J31: =ROUND(J29*I31/100,0) -> 0 | K31: 0 | L31: =ROUND(L29*K31/100,0) -> 0
B32: AMORTIZACION EQUIPOS | D32: =IFERROR(ROUND((D29-D31)/D30,0),0) -> 0 | F32: =IFERROR(ROUND((F29-F31)/F30,0),0) -> 0 | H32: =IFERROR(ROUND((H29-H31)/H30,0),0) -> 0 | J32: =IFERROR(ROUND((J29-J31)/J30,0),0) -> 0 | L32: =IFERROR(ROUND((L29-L31)/L30,0),0) -> 0
B33: GASTOS FINANCIEROS EQUIPOS | D33: =IFERROR(ROUND(IF(D17=0,0,(D29-D31)*(D$3/(1-POWER(1+D$3,-D30))-1/D30)),0),0) -> 0 | F33: =IFERROR(ROUND(IF(F17=0,0,(F29-F31)*(F$3/(1-POWER(1+F$3,-F30))-1/F30)),0),0) -> 0 | H33: =IFERROR(ROUND(IF(H17=0,0,(H29-H31)*(H$3/(1-POWER(1+H$3,-H30))-1/H30)),0),0) -> 0 | J33: =IFERROR(ROUND(IF(J17=0,0,(J29-J31)*(J$3/(1-POWER(1+J$3,-J30))-1/J30)),0),0) -> 0 | L33: =IFERROR(ROUND(IF(L17=0,0,(L29-L31)*(L$3/(1-POWER(1+L$3,-L30))-1/L30)),0),0) -> 0
B34: COSTES DE ADQUISICION | D34: =D16+D20+D21+D22+D26+D27+D28+D32+D33 -> 22419.36 | F34: =F16+F20+F21+F22+F26+F27+F28+F32+F33 -> 20019.12 | H34: =H16+H20+H21+H22+H26+H27+H28+H32+H33 -> 13612.4 | J34: =J16+J20+J21+J22+J26+J27+J28+J32+J33 -> 6916.72 | L34: =L16+L20+L21+L22+L26+L27+L28+L32+L33 -> 20019.12
B35: Coste total anual del personal de a bordo, incluidos costes de empresa (Seguridad Social y otros) (€) | D35: 36783.34 | F35: 36783.34 | H35: 36783.34 | J35: 36783.34 | L35: 36783.34
B36: Otros complementos retributivos del personal de a bordo (€) | D36: 0 | F36: 0 | H36: 0 | J36: 0 | L36: 0
B37: Dieta total diaria del personal de a bordo de transporte regular (€/día) | D37: 33.51 | F37: 33.51 | H37: 26.81 | J37: 26.81 | L37: 33.51
B38: Número de días de transporte regular con dieta al año | D38: 100 | F38: 100 | H38: 50 | J38: 25 | L38: 100
B39: Dieta total diaria internacional del personal de a bordo de transporte regular (€/día) | D39: 0 | F39: 0 | H39: 0 | J39: 0 | L39: 0
B40: Número de días de transporte regular con dieta internacional al año | D40: 0 | F40: 0 | H40: 0 | J40: 0 | L40: 0
B41: Dietas totales anuales por transporte regular (€) | D41: =D37*D38+D39*D40 -> 3351 | F41: =F37*F38+F39*F40 -> 3351 | H41: =H37*H38+H39*H40 -> 1340.5 | J41: =J37*J38+J39*J40 -> 670.25 | L41: =L37*L38+L39*L40 -> 3351
B42: Dieta total diaria del personal de a bordo de transporte discrecional (€/día) | D42: 33.51 | F42: 33.51 | H42: 26.81 | J42: 26.81 | L42: 33.51
B43: Número de días de transporte discrecional con dieta al año | D43: 100 | F43: 100 | H43: 50 | J43: 25 | L43: 100
B44: Dieta total diaria internacional del personal de a bordo de transporte discrecional (€/día) | D44: 0 | F44: 0 | H44: 0 | J44: 0 | L44: 0
B45: Número de días de transporte discrecional con dieta internacional al año | D45: 0 | F45: 0 | H45: 0 | J45: 0 | L45: 0
B46: Dietas totales anuales por transporte discrecional (€) | D46: =D42*D43+D44*D45 -> 3351 | F46: =F42*F43+F44*F45 -> 3351 | H46: =H42*H43+H44*H45 -> 1340.5 | J46: =J42*J43+J44*J45 -> 670.25 | L46: =L42*L43+L44*L45 -> 3351
B47: COSTES DE PERSONAL | D47: =D35+D41+D46 -> 43485.34 | F47: =F35+F41+F46 -> 43485.34 | H47: =H35+H41+H46 -> 39464.34 | J47: =J35+J41+J46 -> 38123.84 | L47: =L35+L41+L46 -> 43485.34
B48: Seguro obligatorio del autocar (€) | D48: 0 | F48: 0 | H48: 0 | J48: 0 | L48: 0
B49: Responsabilidad civil (€) | D49: 0 | F49: 0 | H49: 0 | J49: 0 | L49: 0
B50: Seguro obligatorio de viajeros (€) | D50: 0 | F50: 0 | H50: 0 | J50: 0 | L50: 0
B51: Seguro de accidentes del conductor (€) | D51: 0 | F51: 0 | H51: 0 | J51: 0 | L51: 0
B52: Defensa y reclamación de daños (€) | D52: 0 | F52: 0 | H52: 0 | J52: 0 | L52: 0
B53: Seguro de incendios (€) | D53: 0 | F53: 0 | H53: 0 | J53: 0 | L53: 0
B54: Otros seguros (€) | D54: 0 | F54: 0 | H54: 0 | J54: 0 | L54: 0
B55: TOTAL SEGUROS (€) | D55: 3365.4 | F55: 2862.53 | H55: 2359.54 | J55: 2021.81 | L55: 2862.53
B56: COSTE TOTAL ANUAL DE LOS SEGUROS (€) | D56: =D55 -> 3365.4 | F56: =F55 -> 2862.53 | H56: =H55 -> 2359.54 | J56: =J55 -> 2021.81 | L56: =L55 -> 2862.53
B57: Visados | D57: 0 | F57: 0 | H57: 0 | J57: 0 | L57: 0
B58: Inspección técnica de vehículos (I.T.V.) (€) | D58: 0 | F58: 0 | H58: 0 | J58: 0 | L58: 0
B59: Impuesto de actividades económicas (I.A.E.) repercutible a este vehículo (€) | D59: 0 | F59: 0 | H59: 0 | J59: 0 | L59: 0
B60: Impuesto de Vehículos de Tracción Mecánica (I.T.V.M.) (€) | D60: 0 | F60: 0 | H60: 0 | J60: 0 | L60: 0
B61: Revisión tacógrafo (€) | D61: 0 | F61: 0 | H61: 0 | J61: 0 | L61: 0
B62: Otros costes fiscales (€) | D62: 0 | F62: 0 | H62: 0 | J62: 0 | L62: 0
B63: TOTAL COSTES FISCALES (€) | D63: 1227.74 | F63: 1164.32 | H63: 980.04 | J63: 744.3 | L63: 1164.32
B64: COSTE FISCAL TOTAL ANUAL | D64: =D63 -> 1227.74 | F64: =F63 -> 1164.32 | H64: =H63 -> 980.04 | J64: =J63 -> 744.3 | L64: =L63 -> 1164.32
B65: SEGUROS Y COSTES FISCALES | D65: =D56+D64 -> 4593.14 | F65: =F56+F64 -> 4026.85 | H65: =H56+H64 -> 3339.58 | J65: =J56+J64 -> 2766.11 | L65: =L56+L64 -> 4026.85
B66: Precio del carburante, con IVA (€/litro) | D66: 1.4363 | F66: 1.4363 | H66: 1.4363 | J66: 1.4363 | L66: 1.4363
B67: Descuento (€/litro) | D67: 0.1179 | F67: 0.1179 | H67: 0.1179 | J67: 0.1179 | L67: 0.1179
B68: IVA aplicado al carburante (€/litro) | C68: 21 | D68: =ROUND((C68/100)*(D66-D67)/(1+C68/100),4) -> 0.2288 | E68: 21 | F68: =ROUND((E68/100)*(F66-F67)/(1+E68/100),4) -> 0.2288 | G68: 21 | H68: =ROUND((G68/100)*(H66-H67)/(1+G68/100),4) -> 0.2288 | I68: 21 | J68: =ROUND((I68/100)*(J66-J67)/(1+I68/100),4) -> 0.2288 | K68: 21 | L68: =ROUND((K68/100)*(L66-L67)/(1+K68/100),4) -> 0.2288
B69: Precio carburante sin IVA (€/litro) | D69: =ROUND((D66-D67)/(1+C68/100),4) -> 1.0896 | F69: =ROUND((F66-F67)/(1+E68/100),4) -> 1.0896 | H69: =ROUND((H66-H67)/(1+G68/100),4) -> 1.0896 | J69: =ROUND((J66-J67)/(1+I68/100),4) -> 1.0896 | L69: =ROUND((L66-L67)/(1+K68/100),4) -> 1.0896
B70: GASTO TOTAL ANUAL EN CARBURANTE, SIN IVA (€) | D70: =ROUND(D8/100*D10*D69,0) -> 24516 | F70: =ROUND(F8/100*F10*F69,0) -> 18414 | H70: =ROUND(H8/100*H10*H69,0) -> 11441 | J70: =ROUND(J8/100*J10*J69,0) -> 6756 | L70: =ROUND(L8/100*L10*L69,0) -> 18414
B71: Número de neumáticos direccionables | D71: 4 | F71: 2 | H71: 2 | J71: 2 | L71: 2
B72: Número de neumáticos motrices | D72: 4 | F72: 4 | H72: 4 | J72: 4 | L72: 4
B73: Número de neumáticos arrastre | D73: 0 | F73: 0 | H73: 0 | J73: 0 | L73: 0
B74: Precio sin IVA de un neumático direccionable (€) | D74: 720.56 | F74: 612.24 | H74: 528.06 | J74: 431.54 | L74: 612.24
B75: Precio sin IVA de un neumático motriz (€) | D75: 720.56 | F75: 612.24 | H75: 528.06 | J75: 431.54 | L75: 612.24
B76: Precio sin IVA de un neumático arrastre (€) | D76: 726.56 | F76: 612.24 | H76: 528.06 | J76: 431.54 | L76: 612.24
B77: Duración media de un neumático direccionable (km) | D77: 70000 | F77: 70000 | H77: 70000 | J77: 70000 | L77: 70000
B78: Duración media de un neumático motriz (km) | D78: 70000 | F78: 70000 | H78: 70000 | J78: 70000 | L78: 70000
B79: Duración media de un neumático arrastre (km) | D79: 70000 | F79: 70000 | H79: 70000 | J79: 70000 | L79: 70000
B80: GASTO TOTAL ANUAL EN NEUMATICOS, SIN IVA (€) | D80: =ROUND(IFERROR(D71*D74*D$8/D77,0)+IFERROR(D72*D75*D$8/D78,0)+IFERROR(D73*D76*D$8/D79,0),0) -> 6176.23 | F80: =ROUND(IFERROR(F71*F74*F$8/F77,0)+IFERROR(F72*F75*F$8/F78,0)+IFERROR(F73*F76*F$8/F79,0),0) -> 3411.05 | H80: =ROUND(IFERROR(H71*H74*H$8/H77,0)+IFERROR(H72*H75*H$8/H78,0)+IFERROR(H73*H76*H$8/H79,0),0) -> 2263.11 | J80: =ROUND(IFERROR(J71*J74*J$8/J77,0)+IFERROR(J72*J75*J$8/J78,0)+IFERROR(J73*J76*J$8/J79,0),0) -> 1479.57 | L80: =ROUND(IFERROR(L71*L74*L$8/L77,0)+IFERROR(L72*L75*L$8/L78,0)+IFERROR(L73*L76*L$8/L79,0),0) -> 3411.05
B81: Coste de mantenimento y reparaciones por km, sin IVA (€/km) | D81: 0.1717 | F81: 0.1632 | H81: 0.1192 | J81: 0.0731 | L81: 0.1632
B82: GASTO ANUAL EN MANTENIMIENTO Y REPARACIONES, SIN IVA (€) | D82: =ROUND(D81*D8,2) -> 12877.5 | F82: =ROUND(F81*F8,2) -> 10608 | H82: =ROUND(H81*H8,2) -> 5960 | J82: =ROUND(J81*J8,2) -> 2924 | L82: =ROUND(L81*L8,2) -> 10608
B83: GASTO ANUAL EN PEAJES, SIN IVA (€) | D83: 0 | F83: 0 | H83: 0 | J83: 0 | L83: 0
B84: COSTES VARIABLES | D84: =ROUND(D70+D80+D82+D83+D89,2) -> 44384.85 | F84: =ROUND(F70+F80+F82+F83+F89,2) -> 33045.29 | H84: =ROUND(H70+H80+H82+H83+H89,2) -> 20044.5 | J84: =ROUND(J70+J80+J82+J83+J89,2) -> 11384.18 | L84: =ROUND(L70+L80+L82+L83+L89,2) -> 33045.29
B85: COSTES DIRECTOS | D85: =ROUND(D34+D47+D65+D84,2) -> 114882.69 | F85: =ROUND(F34+F47+F65+F84,2) -> 100576.6 | H85: =ROUND(H34+H47+H65+H84,2) -> 76460.82 | J85: =ROUND(J34+J47+J65+J84,2) -> 59190.85 | L85: =ROUND(L34+L47+L65+L84,2) -> 100576.6
B86: % Costes variables de gestión, administración y comercialización | C86: 12.5 | D86: =ROUND((D34+D47+D65+D84)*(C86/100),0) -> 14360.34 | E86: 12.5 | F86: =ROUND((F34+F47+F65+F84)*(E86/100),0) -> 12572.08 | G86: 12.5 | H86: =ROUND((H34+H47+H65+H84)*(G86/100),0) -> 9557.6 | I86: 12.5 | J86: =ROUND((J34+J47+J65+J84)*(I86/100),0) -> 7398.86 | K86: 12.5 | L86: =ROUND((L34+L47+L65+L84)*(K86/100),0) -> 12572.08
B87: COSTES INDIRECTOS | D87: =ROUND((D34+D47+D65+D84)*(C86/100),0) -> 14360.34 | F87: =ROUND((F34+F47+F65+F84)*(E86/100),0) -> 12572.08 | H87: =ROUND((H34+H47+H65+H84)*(G86/100),0) -> 9557.6 | J87: =ROUND((J34+J47+J65+J84)*(I86/100),0) -> 7398.86 | L87: =ROUND((L34+L47+L65+L84)*(K86/100),0) -> 12572.08
B88: COSTES TOTALES | D88: =D85+D87 -> 129243.03 | F88: =F85+F87 -> 113148.68 | H88: =H85+H87 -> 86018.42 | J88: =J85+J87 -> 66589.71 | L88: =L85+L87 -> 113148.68
B89: GASTO ANUAL POR CONSUMO DE DISOLUCION DE UREA (€, sin IVA) | D89: 815.12 | F89: 612.24 | H89: 380.39 | J89: 224.61 | L89: 612.24
B90: Coste anual por disolucion de urea por kilometro(€/km, sin IVA) | D90: 0.0109 | F90: 0.0094 | H90: 0.0076 | J90: 0.0056 | L90: 0.0094

Sheet Tipo Vehículo
C6: 1. Seleccionar tipo de vehículo
C10: Tipo de vehículo: | E10: =VLOOKUP(F10,T!A2:B17,2,0) -> T17 | F10: Autocar de 15 metros
C13: ¿Desea cargar los datos estadísticos en los campos a rellenar? | G13: No
C16: ¿Desea comenzar la simulación con los datos estadísticos añadidos a los formularios de cálculo?

Sheet Cálculo Simplificado
C6: 1. Cálculo simplificado
C9: Introduzca un resumen simplificado de los parámetros de la simulación | J9: Datos estadísticos | K9: =DE!$AJ$2 -> 19/06/2025
I10: =J10 -> 0.0561 | J10: =IF(HLOOKUP('Tipo Vehículo'!$E$10,DE!$D$1:$AT$286,3,0)="","",HLOOKUP('Tipo Vehículo'!$E$10,DE!$D$1:$AT$286,3,0)) -> 0.0561
C11: Kilómetros recorridos anualmente (km) | J11: =IF(HLOOKUP('Tipo Vehículo'!$E$10,DE!$D$1:$S$301,8,0)="","",HLOOKUP('Tipo Vehículo'!$E$10,DE!$D$1:$S$301,8,0)) -> 75000
C13: Kilómetros facturados al año (km) | J13: =IF(HLOOKUP('Tipo Vehículo'!$E$10,DE!$D$1:$S$301,9,0)="","",HLOOKUP('Tipo Vehículo'!$E$10,DE!$D$1:$S$301,9,0)) -> 71250
C15: Kilómetros recorridos con personas (km) | J15: =IF(HLOOKUP('Tipo Vehículo'!$E$10,DE!$D$1:$S$301,13,0)="","",HLOOKUP('Tipo Vehículo'!$E$10,DE!$D$1:$S$301,13,0)) -> 67500
C17: Número de plazas de personas ocupadas en promedio | J17: =IF(HLOOKUP('Tipo Vehículo'!$E$10,DE!$D$1:$S$301,14,0)="","",HLOOKUP('Tipo Vehículo'!$E$10,DE!$D$1:$S$301,14,0)) -> 11
C19: Producción anual: Personas x Kilómetros | H19: (*) | I19: =IFERROR(ROUND(I15*I17,0),"") -> 0 | J19: =IF(HLOOKUP('Tipo Vehículo'!$E$10,DE!$D$1:$S$301,15,0)="","",HLOOKUP('Tipo Vehículo'!$E$10,DE!$D$1:$S$301,15,0)) -> 742500
C21: Horas trabajadas al año (h) | J21: =IF(HLOOKUP('Tipo Vehículo'!$E$10,DE!$D$1:$S$301,11,0)="","",HLOOKUP('Tipo Vehículo'!$E$10,DE!$D$1:$S$301,11,0)) -> 1800
C23: Horas facturadas al año (h) | J23: =IF(HLOOKUP('Tipo Vehículo'!$E$10,DE!$D$1:$S$301,12,0)="","",HLOOKUP('Tipo Vehículo'!$E$10,DE!$D$1:$S$301,12,0)) -> 1638
C25: Precio de adquisición del chasis después de descuentos, sin IVA, sin neumáticos (€) | J25: =IF(HLOOKUP('Tipo Vehículo'!$E$10,DE!$D$1:$S$301,17,0)="","",HLOOKUP('Tipo Vehículo'!$E$10,DE!$D$1:$S$301,17,0)-((HLOOKUP('Tipo Vehículo'!$E$10,DE!$D$1:$S$301,71,0)*HLOOKUP('Tipo Vehículo'!$E$10,DE!$D$1:$S$301,74,0))*(HLOOKUP('Tipo Vehículo'!$E$10,DE!$D$1:$S$301,8,0)/HLOOKUP('Tipo Vehículo'!$E$10,DE!$D$1:$S$301,77,0))+(HLOOKUP('Tipo Vehículo'!$E$10,DE!$D$1:$S$301,72,0)*HLOOKUP('Tipo Vehículo'!$E$10,DE!$D$1:$S$301,75,0))*(HLOOKUP('Tipo Vehículo'!$E$10,DE!$D$1:$S$301,8,0)/HLOOKUP('Tipo Vehículo'!$E$10,DE!$D$1:$S$301,78,0))+(HLOOKUP('Tipo Vehículo'!$E$10,DE!$D$1:$S$301,73,0)*HLOOKUP('Tipo Vehículo'!$E$10,DE!$D$1:$S$301,76,0))*(HLOOKUP('Tipo Vehículo'!$E$10,DE!$D$1:$S$301,8,0)/HLOOKUP('Tipo Vehículo'!$E$10,DE!$D$1:$S$301,79,0)))) -> 123363.5214
C27: Vida útil del chasis (años) | J27: =IF(HLOOKUP('Tipo Vehículo'!$E$10,DE!$D$1:$S$301,18,0)="","",HLOOKUP('Tipo Vehículo'!$E$10,DE!$D$1:$S$301,18,0)) -> 12
C29: Valor residual del chasis, sin IVA (€) | J29: =IF(HLOOKUP('Tipo Vehículo'!$E$10,DE!$D$1:$S$301,19,0)="","",HLOOKUP('Tipo Vehículo'!$E$10,DE!$D$1:$S$301,19,0)) -> 25893
C31: Precio de adquisición carrozado después de descuentos, sin IVA (€) | J31: =IF(HLOOKUP('Tipo Vehículo'!$E$10,DE!$D$1:$S$301,23,0)="","",HLOOKUP('Tipo Vehículo'!$E$10,DE!$D$1:$S$301,23,0)) -> 129466.55
C33: Vida útil del carrozado (años) | J33: =IF(HLOOKUP('Tipo Vehículo'!$E$10,DE!$D$1:$S$301,24,0)="","",HLOOKUP('Tipo Vehículo'!$E$10,DE!$D$1:$S$301,24,0)) -> 12
C35: Valor residual del carrozado, sin IVA (€) | J35: =IF(HLOOKUP('Tipo Vehículo'!$E$10,DE!$D$1:$S$301,25,0)="","",HLOOKUP('Tipo Vehículo'!$E$10,DE!$D$1:$S$301,25,0)) -> 25893
C37: Leasing y alquiler del autocar (€) | J37: =IF(HLOOKUP('Tipo Vehículo'!$E$10,DE!$D$1:$S$301,16,0)="","",HLOOKUP('Tipo Vehículo'!$E$10,DE!$D$1:$S$301,16,0)) -> 0
C39: Coste total anual del personal de a bordo, incluidos costes de empresa (Seguridad Social y otros) (€) | J39: =IF(HLOOKUP('Tipo Vehículo'!$E$10,DE!$D$1:$S$301,35,0)="","",HLOOKUP('Tipo Vehículo'!$E$10,DE!$D$1:$S$301,35,0)) -> 34931.95
C41: Dietas y otros complementos retributivos anuales del personal de a bordo (€) | J41: =IF(HLOOKUP('Tipo Vehículo'!$E$10,DE!$D$1:$S$301,41,0)="","",HLOOKUP('Tipo Vehículo'!$E$10,DE!$D$1:$S$301,41,0))+IF(HLOOKUP('Tipo Vehículo'!$E$10,DE!$D$1:$S$301,46,0)="","",HLOOKUP('Tipo Vehículo'!$E$10,DE!$D$1:$S$301,46,0)) -> 6364
C43: Coste total anual de los seguros (€) | J43: =IF(HLOOKUP('Tipo Vehículo'!$E$10,DE!$D$1:$S$301,56,0)="","",HLOOKUP('Tipo Vehículo'!$E$10,DE!$D$1:$S$301,56,0)) -> 3059.46
C45: Coste fiscal total anual (€) | J45: =IF(HLOOKUP('Tipo Vehículo'!$E$10,DE!$D$1:$S$301,64,0)="","",HLOOKUP('Tipo Vehículo'!$E$10,DE!$D$1:$S$301,64,0)) -> 1194.3
C47: Precio carburante, sin IVA (€/litro) | J47: =IF(HLOOKUP('Tipo Vehículo'!$E$10,DE!$D$1:$S$301,69,0)="","",HLOOKUP('Tipo Vehículo'!$E$10,DE!$D$1:$S$301,69,0)) -> 0.924
C49: GASTO ANUAL POR CONSUMO DE DISOLUCIÓN DE UREA (€, sin IVA) | J49: =IF(HLOOKUP('Tipo Vehículo'!$E$10,DE!$D$1:$S$301,89,0)="","",HLOOKUP('Tipo Vehículo'!$E$10,DE!$D$1:$S$301,89,0)) -> 791.37
C51: Gasto total anual en carburante, sin IVA (€) | J51: =IF(HLOOKUP('Tipo Vehículo'!$E$10,DE!$D$1:$S$301,70,0)="",0,HLOOKUP('Tipo Vehículo'!$E$10,DE!$D$1:$S$301,70,0)) -> 20790
C53: Gasto total anual en neumáticos, sin IVA (€) | J53: =IF(HLOOKUP('Tipo Vehículo'!$E$10,DE!$D$1:$S$301,80,0)="","",HLOOKUP('Tipo Vehículo'!$E$10,DE!$D$1:$S$301,80,0)) -> 6103
C55: Gasto anual en mantenimiento y reparaciones, sin IVA (€) | J55: =IF(HLOOKUP('Tipo Vehículo'!$E$10,DE!$D$1:$S$301,82,0)="","",HLOOKUP('Tipo Vehículo'!$E$10,DE!$D$1:$S$301,82,0)) -> 12502.5
C57: Gasto anual en peajes, sin IVA (€) | J57: =IF(HLOOKUP('Tipo Vehículo'!$E$10,DE!$D$1:$S$301,83,0)="","",HLOOKUP('Tipo Vehículo'!$E$10,DE!$D$1:$S$301,83,0)) -> 0
C59: Gastos de gestión y comercialización repercutibles a este vehículo (€) | J59: =IF(HLOOKUP('Tipo Vehículo'!$E$10,DE!$D$1:$S$301,87,0)="","",HLOOKUP('Tipo Vehículo'!$E$10,DE!$D$1:$S$301,87,0)) -> 13651
C61: (*) Los campos marcados con asterisco se recalcularán automaticamente al cambiar los kilómetros.

Sheet Resultados
C6: Resultados
C9: ESTRUCTURA DE COSTES ANUALES | E9: Usuario | H9: Datos estadísticos | I9: =DE!$AJ$2 -> 19/06/2025
E10: Euros | F10: % | H10: Euros | I10: %
C11: Amortización y gastos financieros y leasing | D11: A | E11: =ROUND(IFERROR(ROUND(('Cálculo Simplificado'!I25-'Cálculo Simplificado'!I29)*(1/'Cálculo Simplificado'!I27)+('Cálculo Simplificado'!I31-'Cálculo Simplificado'!I35)*(1/'Cálculo Simplificado'!I33)+('Cálculo Simplificado'!I25-'Cálculo Simplificado'!I29)*(-(1/'Cálculo Simplificado'!I27)+'Cálculo Simplificado'!J10/(1-POWER(1+'Cálculo Simplificado'!J10,((-1)*'Cálculo Simplificado'!I27))))+('Cálculo Simplificado'!I31-'Cálculo Simplificado'!I35)*(-(1/'Cálculo Simplificado'!I33)+'Cálculo Simplificado'!J10/(1-POWER(1+'Cálculo Simplificado'!J10,((-1)*'Cálculo Simplificado'!I33)))),0)+'Cálculo Simplificado'!I37,0),0) -> 0 | F11: =IFERROR(E11*F$16/E$16,0) -> 0 | G11: A | H11: =ROUND(IFERROR(ROUND(('Cálculo Simplificado'!J25-'Cálculo Simplificado'!J29)*(1/'Cálculo Simplificado'!J27)+('Cálculo Simplificado'!J31-'Cálculo Simplificado'!J35)*(1/'Cálculo Simplificado'!J33)+('Cálculo Simplificado'!J25-'Cálculo Simplificado'!J29)*(-(1/'Cálculo Simplificado'!J27)+'Cálculo Simplificado'!J10/(1-POWER(1+'Cálculo Simplificado'!J10,((-1)*'Cálculo Simplificado'!J27))))+('Cálculo Simplificado'!J31-'Cálculo Simplificado'!J35)*(-(1/'Cálculo Simplificado'!J33)+'Cálculo Simplificado'!J10/(1-POWER(1+'Cálculo Simplificado'!J10,((-1)*'Cálculo Simplificado'!J33)))),0)+'Cálculo Simplificado'!J37,0),0) -> 23470 | I11: =IFERROR(H11*I$16/H$16,0) -> 19.10335509
C12: Personal | D12: B | E12: =ROUND(IFERROR('Cálculo Simplificado'!I39+'Cálculo Simplificado'!I41,0),0) -> 0 | F12: =IFERROR(E12*F$16/E$16,0) -> 0 | G12: B | H12: =ROUND('Cálculo Simplificado'!J39+'Cálculo Simplificado'!J41,0) -> 41296 | I12: =IFERROR(H12*I$16/H$16,0) -> 33.61278875
C13: Seguros, costes fiscales, gestión y comercialización | D13: C | E13: =ROUND(IFERROR('Cálculo Simplificado'!I43+'Cálculo Simplificado'!I45+'Cálculo Simplificado'!I59,0),0) -> 0 | F13: =IFERROR(E13*F$16/E$16,0) -> 0 | G13: C | H13: =ROUND(IFERROR('Cálculo Simplificado'!J43+'Cálculo Simplificado'!J45+'Cálculo Simplificado'!J59,0),0) -> 17905 | I13: =IFERROR(H13*I$16/H$16,0) -> 14.57373553
C14: Carburante, neumáticos, reparaciones, mantenimiento y peajes | D14: D | E14: =ROUND(IFERROR('Cálculo Simplificado'!I49+'Cálculo Simplificado'!I51+'Cálculo Simplificado'!I53+'Cálculo Simplificado'!I55+'Cálculo Simplificado'!I57,0),0) -> 0 | F14: =IFERROR(E14*F$16/E$16,0) -> 0 | G14: D | H14: =ROUND(IFERROR('Cálculo Simplificado'!J49+'Cálculo Simplificado'!J51+'Cálculo Simplificado'!J53+'Cálculo Simplificado'!J55+'Cálculo Simplificado'!J57,0),0) -> 40187 | I14: =IFERROR(H14*I$16/H$16,0) -> 32.71012063
C16: COSTES TOTALES | E16: =ROUND(SUM(E11:E14),0) -> 0 | F16: 100 | H16: =ROUND(SUM(H11:H14),0) -> 122858 | I16: 100
C36: COSTES POR TIEMPO-COSTES POR DISTANCIA | E36: Usuario | H36: Datos estadísticos | I36: =DE!$AJ$2 -> 19/06/2025
E38: Euros | F38: % | H38: Euros | I38: %
C40: Costes por tiempo | D40: A | E40: =ROUND(E11+E12+E13,0) -> 0 | F40: =IFERROR(E40*F$16/E$16,0) -> 0 | G40: A | H40: =ROUND(H11+H12+H13,0) -> 82671 | I40: =IFERROR(H40*I$16/H$16,0) -> 67.28987937
C41: Costes por distancia | D41: B | E41: =ROUND(E14,0) -> 0 | F41: =IFERROR(E41*F$16/E$16,0) -> 0 | G41: B | H41: =ROUND(H14,0) -> 40187 | I41: =IFERROR(H41*I$16/H$16,0) -> 32.71012063
C43: COSTES TOTALES | E43: =ROUND(SUM(E40:E41),0) -> 0 | F43: 100 | H43: =ROUND(SUM(H40:H41),0) -> 122858 | I43: 100
C59: COSTES MEDIOS | E59: Usuario | H59: Datos estadísticos | I59: =DE!$AJ$2 -> 19/06/2025
C61: Coste total medio (por km) | E61: =IFERROR(E43/'Cálculo Simplificado'!I11,0) -> 0 | H61: =IFERROR(H43/'Cálculo Simplificado'!J11,0) -> 1.638106667
C62: Coste total medio (por hora) | E62: =IFERROR(E43/'Cálculo Simplificado'!I21,0) -> 0 | H62: =IFERROR(H43/'Cálculo Simplificado'!J21,0) -> 68.25444444
C63: Coste total medio (por km. facturado) | E63: =IFERROR(E43/'Cálculo Simplificado'!I13,0) -> 0 | H63: =IFERROR(H43/'Cálculo Simplificado'!J13,0) -> 1.724322807
C64: Coste total medio (por hora facturada) | E64: =IFERROR(E43/'Cálculo Simplificado'!I23,0) -> 0 | H64: =IFERROR(H43/'Cálculo Simplificado'!J23,0) -> 75.004884
C65: Coste por distancia media (por km.) | E65: =IFERROR(E41/'Cálculo Simplificado'!I11,0) -> 0 | H65: =IFERROR(H41/'Cálculo Simplificado'!J11,0) -> 0.5358266667
C66: Coste por distancia media (por km. facturado) | E66: =IFERROR(E41/'Cálculo Simplificado'!I13,0) -> 0 | H66: =IFERROR(H41/'Cálculo Simplificado'!J13,0) -> 0.5640280702
C67: Coste por tiempo medio (por hora) | E67: =IFERROR(E40/'Cálculo Simplificado'!I21,0) -> 0 | H67: =IFERROR(H40/'Cálculo Simplificado'!J21,0) -> 45.92833333
C68: Coste por tiempo medio (por hora facturada) | E68: =IFERROR(E40/'Cálculo Simplificado'!I23,0) -> 0 | H68: =IFERROR(H40/'Cálculo Simplificado'!J23,0) -> 50.47069597
C69: Costes totales por persona-kilómetro | E69: =IFERROR(E43/'Cálculo Simplificado'!I15/'Cálculo Simplificado'!I17,0) -> 0 | H69: =IFERROR(H43/'Cálculo Simplificado'!J15/'Cálculo Simplificado'!J17,0) -> 0.1654653199

Sheet Coste Servicio
C6: 1. Coste de un servicio
C9: Coste de un servicio
C11: Denominación del servicio
C13: Kilómetros recorridos en este servicio (km)
C15: Kilómetros con personas (km)
C17: Consumo medio por kilómetro en este servicio (litros / 100 km)
C19: Número medio de plazas de personas ocupadas en este servicio
C21: Horas empleadas en este servicio (h)
C23: Peajes (€)
C25: Coste por distancia de este servicio (€) | F25: =IFERROR(ROUND((F13*F17/100*'Cálculo Simplificado'!I47)+(F13*('Cálculo Simplificado'!I53+'Cálculo Simplificado'!I55)/'Cálculo Simplificado'!I11)+F23,2),0) -> 0
C27: Coste por tiempo de este servicio (€) | F27: =IFERROR(ROUND(F21*(Resultados!E11+Resultados!E12+Resultados!E13)/'Cálculo Simplificado'!I21,0),0) -> 0
C29: Otros costes asociados a este servicio (€)
C31: Coste total de este servicio (€) | F31: =IFERROR(ROUND(F25+F27+F29,2),0) -> 0
C33: Coste por persona-kilómetro de este servicio (€) | F33: =IFERROR(F31/F13/F19,0) -> 0
